bitfinex-derivatives/quotes_BTCF0:USTF0_20241122
["timestamp","ask_amount","ask_price","bid_price","bid_amount"]
[1732316577532,0.050613,98675.0,98674.0,0.66448078]
[1732316577729,0.3608,98675.0,98674.0,0.28763458]
[1732316577920,0.3608,98678.0,98665.0,0.050617]
[1732316578121,0.05061,98680.0,98665.0,0.050617]
[1732316578324,0.05061,98680.0,98665.0,0.131417]
[1732316578524,0.05061,98680.0,98665.0,0.050617]
[1732316578723,0.41141,98680.0,98665.0,0.050617]
[1732316580131,0.3608,98680.0,98665.0,0.050617]
[1732316580325,0.050611,98679.0,98665.0,0.050617]
[1732316580830,0.050611,98679.0,98666.0,0.08616]
[1732316581228,0.050612,98677.0,98666.0,0.08616]
[1732316582437,0.050612,98677.0,98666.0,0.136777]
[1732316582734,0.050612,98677.0,98668.0,0.050616]
[1732316586724,0.39244001,98687.0,98667.0,0.08616]
[1732316586725,0.39244001,98687.0,98672.0,0.3608]
[1732316586933,0.3608,98699.0,98679.0,0.3608]
[1732316587227,0.3608,98699.0,98693.0,0.050603]
[1732316587429,0.3608,98699.0,98693.0,0.136763]
[1732316589329,0.4114,98699.0,98693.0,0.08616]
[1732316589859,0.3608,98699.0,98693.0,0.08616]
[1732316590736,0.050599,98701.0,98693.0,0.08616]
[1732316591034,0.411399,98701.0,98693.0,0.08616]
[1732316592738,0.050602,98697.0,98693.0,0.08616]
[1732316593240,0.050602,98697.0,98692.0,0.050604]
[1732316593443,0.050602,98697.0,98693.0,0.08616]
[1732316596629,0.35453173,98701.0,98693.0,0.08616]
[1732316597638,0.050602,98697.0,98693.0,0.136763]
[1732316601855,0.71533173,98701.0,98682.0,0.3608]
[1732316602153,0.3608,98690.0,98683.0,0.08616]
[1732316602545,0.050608,98684.0,98683.0,0.08616]
[1732316604155,0.050608,98684.0,98682.0,0.08616]
[1732316606056,0.050608,98684.0,98682.0,0.136769]
[1732316606660,0.35452901,98685.0,98682.0,0.136769]
[1732316607850,0.050608,98684.0,98682.0,0.136769]
[1732316608156,0.35452901,98685.0,98684.0,0.050608]
[1732316608357,0.050608,98684.0,98682.0,0.08616]
[1732316608551,0.050608,98684.0,98668.0,0.00152016]
[1732316608552,0.3908,98683.0,98668.0,0.00152016]
[1732316608753,0.411416,98669.0,98668.0,0.00152016]
[1732316611761,0.050618,98665.0,98660.0,0.13342]
[1732316611955,0.050619,98663.0,98660.0,0.13342]
[1732316612162,0.41142,98661.0,98660.0,0.0828]
[1732316612751,0.41142,98661.0,98654.0,0.050623]
[1732316612752,0.41142,98661.0,98657.0,0.0828]
[1732316612964,0.3608,98661.0,98657.0,0.133422]
[1732316613657,0.00168,98669.0,98667.0,0.050616]
[1732316613851,0.00152075,98689.0,98680.0,0.05061]
[1732316614051,0.00152075,98689.0,98681.0,0.1453]
[1732316614250,0.00152075,98689.0,98682.0,0.0828]
[1732316614755,0.00152075,98689.0,98687.0,0.050606]
[1732316614957,0.3608,98688.0,98669.0,0.0828]
[1732316615157,0.3608,98685.0,98668.0,0.0314]
[1732316615356,0.3608,98685.0,98679.0,0.05061]
[1732316615663,0.3608,98685.0,98680.0,0.05061]
[1732316615859,0.00152075,98689.0,98688.0,0.050606]
[1732316617762,0.00152075,98689.0,98683.0,0.050608]
[1732316617958,0.00152075,98689.0,98688.0,0.050606]
[1732316618968,0.05212575,98689.0,98686.0,0.050607]
[1732316619562,0.00152075,98689.0,98688.0,0.050606]
[1732316621571,0.00152075,98689.0,98682.0,0.0649]
[1732316621770,0.3608,98683.0,98682.0,0.0316]
[1732316621965,0.3608,98683.0,98682.0,0.165009]
[1732316624270,0.3608,98683.0,98682.0,0.0828]
[1732316624977,0.3608,98683.0,98682.0,0.133409]
[1732316625470,0.00152075,98689.0,98682.0,0.133409]
[1732316625471,0.00152075,98689.0,98688.0,0.050606]
[1732316626173,0.3608,98712.0,98688.0,0.304]
[1732316626373,0.3608,98712.0,98682.0,0.494209]
[1732316626374,0.3608,98712.0,98711.0,0.050594]
[1732316627472,0.3608,98712.0,98710.0,0.0828]
[1732316627473,0.3608,98712.0,98702.0,0.0828]
[1732316627679,0.3608,98704.0,98702.0,0.133399]
[1732316627867,0.2998,98704.0,98702.0,0.133399]
[1732316628676,0.050597,98705.0,98702.0,0.133399]
[1732316629276,0.3608,98712.0,98702.0,0.0828]
[1732316629479,0.050595,98709.0,98704.0,0.050598]
[1732316630166,0.3608,98712.0,98704.0,0.050598]
[1732316630370,0.050596,98708.0,98704.0,0.050598]
[1732316630770,0.050596,98707.0,98704.0,0.050598]
[1732316632578,0.050597,98706.0,98702.0,0.133399]
[1732316632771,0.050597,98706.0,98702.0,0.050599]
[1732316633579,0.3608,98704.0,98702.0,0.050599]
[1732316634478,0.3608,98704.0,98698.0,0.0828]
[1732316634479,0.411398,98704.0,98698.0,0.0828]
[1732316634781,0.411398,98704.0,98701.0,0.050599]
[1732316634969,0.050598,98703.0,98698.0,0.0828]
[1732316635170,0.3608,98704.0,98702.0,0.050599]
[1732316635375,0.050605,98690.0,98682.0,0.115909]
[1732316635569,0.050607,98686.0,98683.0,0.0828]
[1732316635770,0.050607,98686.0,98683.0,0.133408]
[1732316636277,0.050609,98682.0,98681.0,0.0828]
[1732316636580,0.050609,98682.0,98676.0,0.050612]
[1732316636782,0.050609,98682.0,98678.0,0.050611]
[1732316636972,0.050609,98682.0,98679.0,0.05061]
[1732316637569,0.050617,98668.0,98650.0,0.09837831]
[1732316637875,0.050615,98671.0,98668.0,0.050616]
[1732316638076,0.050615,98671.0,98667.0,0.0828]
[1732316638077,0.3608,98675.0,98667.0,0.0828]
[1732316638281,0.050615,98670.0,98667.0,0.0828]
[1732316638472,0.050616,98668.0,98667.0,0.0828]
[1732316639275,0.3608,98675.0,98674.0,0.050613]
[1732316639475,0.3908,98683.0,98674.0,0.411413]
[1732316639683,0.3908,98683.0,98682.0,0.050609]
[1732316639885,0.3908,98683.0,98682.0,0.137369]
[1732316640878,0.3908,98683.0,98682.0,0.498169]
[1732316641881,0.050601,98699.0,98698.0,0.050599]
[1732316642680,0.35697473,98707.0,98706.0,0.050597]
[1732316642882,0.35069,98707.0,98706.0,0.050597]
[1732316644080,0.35069,98707.0,98706.0,0.137357]
[1732316647579,0.050593,98714.0,98713.0,0.050593]
[1732316647979,0.0621,98719.0,98706.0,0.08676]
[1732316648181,0.050591,98718.0,98717.0,0.050591]
[1732316648484,0.3608,98725.0,98717.0,0.050591]
[1732316648485,0.3608,98725.0,98720.0,0.05059]
[1732316648688,0.39252001,98734.0,98720.0,0.05059]
[1732316648882,0.050586,98727.0,98720.0,0.05059]
[1732316649282,0.3908,98734.0,98720.0,0.05059]
[1732316649486,0.050585,98729.0,98720.0,0.05059]
[1732316649783,0.050585,98729.0,98728.0,0.050585]
[1732316650581,0.411383,98734.0,98733.0,0.050583]
[1732316650883,0.050583,98734.0,98733.0,0.050583]
[1732316651083,0.3908,98738.0,98729.0,0.08676]
[1732316651285,0.3908,98738.0,98735.0,0.050582]
[1732316651491,0.050581,98737.0,98735.0,0.050582]
[1732316652279,0.41198118,98738.0,98730.0,0.050584]
[1732316652485,0.41034117,98738.0,98726.0,0.08676]
[1732316652680,0.41034117,98738.0,98731.0,0.050584]
[1732316652887,0.41034117,98738.0,98724.0,0.08676]
[1732316653093,0.050583,98733.0,98728.0,0.050585]
[1732316653896,0.050583,98733.0,98729.0,0.050585]
[1732316654188,0.050581,98737.0,98730.0,0.050584]
[1732316654388,0.050584,98732.0,98726.0,0.050586]
[1732316655282,0.050584,98732.0,98727.0,0.050586]
[1732316655986,0.41198118,98738.0,98724.0,0.08676]
[1732316656188,0.41034117,98738.0,98723.0,0.08676]
[1732316656385,0.050585,98729.0,98723.0,0.08676]
[1732316656697,0.41034117,98738.0,98723.0,0.08676]
[1732316656698,0.050586,98728.0,98723.0,0.08676]
[1732316656886,0.3908,98737.0,98723.0,0.08676]
[1732316656887,0.050587,98724.0,98723.0,0.08676]
[1732316657402,0.050587,98724.0,98702.0,0.050599]
[1732316657403,0.69468,98724.0,98695.0,0.3608]
[1732316657591,0.3608,98709.0,98697.0,0.08676]
[1732316657896,0.3608,98709.0,98698.0,0.08676]
[1732316658083,0.050597,98705.0,98701.0,0.050599]
[1732316658685,0.050598,98703.0,98702.0,0.08676]
[1732316658992,0.050598,98703.0,98701.0,0.050599]
[1732316659291,0.050597,98707.0,98700.0,0.08676]
[1732316659488,0.3608,98701.0,98700.0,0.13736]
[1732316663389,0.3608,98701.0,98696.0,0.05212174]
[1732316663597,0.3608,98701.0,98700.0,0.0506]
[1732316665592,0.3608,98707.0,98698.0,0.08676]
[1732316666704,0.75328,98719.0,98714.0,0.050593]
[1732316666705,0.050592,98716.0,98714.0,0.050593]
[1732316666890,0.75328,98719.0,98701.0,0.050599]
[1732316667097,0.7516,98719.0,98700.0,0.45917831]
[1732316667296,0.050591,98717.0,98700.0,0.09837831]
[1732316667496,0.050592,98716.0,98709.0,0.050595]
[1732316667801,0.7516,98719.0,98709.0,0.050595]
[1732316667802,0.050592,98715.0,98709.0,0.050595]
[1732316668000,0.050592,98715.0,98700.0,0.09837831]
[1732316668201,0.050592,98715.0,98710.0,0.050595]
[1732316669398,0.3608,98719.0,98705.0,0.050597]
[1732316669598,0.050593,98714.0,98698.0,0.08676]
[1732316669802,0.3608,98719.0,98698.0,0.08676]
[1732316669996,0.050594,98712.0,98700.0,0.0506]
[1732316670197,0.050594,98712.0,98707.0,0.050596]
[1732316670597,0.050594,98712.0,98698.0,0.08676]
[1732316670598,0.050594,98712.0,98708.0,0.050595]
[1732316670799,0.00045206,98712.0,98708.0,0.050595]
[1732316670997,0.3608,98719.0,98708.0,0.050595]
[1732316671300,0.050593,98714.0,98708.0,0.050595]
[1732316672107,0.3608,98719.0,98708.0,0.050595]
[1732316672307,0.050593,98714.0,98708.0,0.050595]
[1732316672606,0.3608,98719.0,98698.0,0.08676]
[1732316672809,0.3608,98719.0,98713.0,0.050593]
[1732316673008,0.3608,98719.0,98698.0,0.08676]
[1732316673009,0.050592,98717.0,98714.0,0.050592]
[1732316673310,0.3608,98719.0,98698.0,0.08676]
[1732316673311,0.050593,98714.0,98709.0,0.050595]
[1732316673807,0.050593,98714.0,98710.0,0.050594]
[1732316674009,0.3608,98719.0,98699.0,0.0506]
[1732316674207,0.3608,98719.0,98709.0,0.09837831]
[1732316674408,0.3608,98719.0,98718.0,0.050591]
[1732316674804,0.41139,98719.0,98716.0,0.09036]
[1732316675011,0.050591,98717.0,98716.0,0.09036]
[1732316675313,0.3608,98719.0,98700.0,0.3608]
[1732316675314,0.050595,98709.0,98708.0,0.09036]
[1732316675510,0.3608,98709.0,98708.0,0.09036]
[1732316675715,0.411395,98709.0,98708.0,0.09036]
[1732316676417,0.3608,98709.0,98691.0,0.0301]
[1732316676617,0.4114,98700.0,98698.0,0.050601]
[1732316676913,0.050601,98697.0,98689.0,0.09036]
[1732316677312,0.0934,98699.0,98683.0,0.09036]
[1732316677613,0.3608,98698.0,98680.0,0.09837831]
[1732316677806,0.3608,98698.0,98681.0,0.09036]
[1732316678006,0.411406,98689.0,98685.0,0.050607]
[1732316678207,0.050607,98687.0,98685.0,0.050607]
[1732316678713,0.3608,98689.0,98683.0,0.09036]
[1732316678919,0.3608,98689.0,98688.0,0.050606]
[1732316679213,0.411405,98689.0,98685.0,0.140967]
[1732316679415,0.411405,98689.0,98685.0,0.09036]
[1732316679616,0.411405,98689.0,98686.0,0.050607]
[1732316680022,0.3608,98689.0,98685.0,0.09036]
[1732316680222,0.050607,98686.0,98685.0,0.09036]
[1732316681023,0.3608,98689.0,98685.0,0.140967]
[1732316681225,0.411406,98689.0,98685.0,0.140967]
[1732316681618,0.401296,98689.0,98685.0,0.140967]
[1732316682025,0.401296,98689.0,98687.0,0.050606]
[1732316682924,0.050606,98689.0,98687.0,0.050606]
[1732316683321,0.3608,98698.0,98685.0,0.09036]
[1732316683526,0.3608,98698.0,98697.0,0.050601]
[1732316683821,0.30392683,98698.0,98697.0,0.140961]
[1732316684022,0.0633,98716.0,98697.0,0.45116]
[1732316684219,0.0633,98716.0,98698.0,0.0325]
[1732316684427,0.050592,98715.0,98699.0,0.0506]
[1732316684731,0.0633,98716.0,98698.0,0.0325]
[1732316684732,0.050593,98714.0,98711.0,0.050594]
[1732316685928,0.0633,98716.0,98711.0,0.050594]
[1732316685929,0.050593,98713.0,98711.0,0.050594]
[1732316686431,0.050594,98712.0,98711.0,0.050594]
[1732316689025,0.0633,98716.0,98703.0,0.050598]
[1732316689331,0.0633,98716.0,98702.0,0.09036]
[1732316689332,0.050592,98715.0,98710.0,0.050594]
[1732316689731,0.050593,98714.0,98710.0,0.050594]
[1732316689934,0.050593,98714.0,98702.0,0.09036]
[1732316689935,0.050591,98719.0,98702.0,0.09036]
[1732316690229,0.3623203,98721.0,98709.0,0.09837831]
[1732316690426,0.3623203,98721.0,98710.0,0.0325]
[1732316690628,0.3623203,98721.0,98719.0,0.05059]
[1732316691032,0.3623203,98721.0,98720.0,0.05059]
[1732316691329,0.0015203,98721.0,98720.0,0.05059]
[1732316695725,0.050585,98730.0,98729.0,0.050585]
[1732316695925,0.050585,98730.0,98729.0,0.140945]
[1732316696637,0.05107297,98735.0,98729.0,0.09036]
[1732316696941,0.050582,98735.0,98734.0,0.050582]
[1732316697840,0.39424001,98739.0,98729.0,0.09036]
[1732316698138,0.3926,98739.0,98735.0,0.050582]
[1732316698334,0.050581,98737.0,98735.0,0.050582]
[1732316700338,0.39424001,98739.0,98736.0,0.050581]
[1732316700539,0.050581,98736.0,98733.0,0.050583]
[1732316700933,0.050582,98735.0,98733.0,0.050583]
[1732316701441,0.44427633,98739.0,98729.0,0.09036]
[1732316701634,0.050583,98734.0,98733.0,0.050583]
[1732316701834,0.050581,98737.0,98733.0,0.050583]
[1732316703037,0.050582,98735.0,98733.0,0.050583]
[1732316703240,0.050584,98730.0,98728.0,0.050585]
[1732316703742,0.050584,98730.0,98729.0,0.050585]
[1732316703933,0.44263632,98739.0,98727.0,0.0886]
[1732316704137,0.050583,98734.0,98729.0,0.050585]
[1732316704335,0.44435633,98739.0,98729.0,0.050585]
[1732316704535,0.050583,98734.0,98729.0,0.050585]
[1732316705139,0.050583,98732.0,98729.0,0.050585]
[1732316705340,0.44435633,98739.0,98731.0,0.050584]
[1732316705541,0.44263632,98739.0,98731.0,0.050584]
[1732316705843,0.050582,98735.0,98731.0,0.050584]
[1732316706243,0.43800736,98739.0,98724.0,0.3608]
[1732316706540,0.43636735,98739.0,98721.0,0.3608]
[1732316707040,0.050586,98728.0,98724.0,0.050587]
[1732316707632,0.050588,98723.0,98722.0,0.08856]
[1732316707939,0.3608,98728.0,98708.0,0.08856]
[1732316708135,0.050592,98715.0,98712.0,0.050593]
[1732316708335,0.3908,98735.0,98709.0,0.3608]
[1732316708336,0.3608,98720.0,98709.0,0.3608]
[1732316708639,0.050593,98714.0,98709.0,0.411395]
[1732316708844,0.050593,98713.0,98709.0,0.411395]
[1732316709137,0.3608,98720.0,98709.0,0.3608]
[1732316709345,0.050594,98711.0,98710.0,0.08856]
[1732316710135,0.0329,98719.0,98710.0,0.08856]
[1732316710335,0.08297543,98719.0,98710.0,0.08856]
[1732316710548,0.08297543,98719.0,98709.0,0.050595]
[1732316710938,0.08297543,98719.0,98710.0,0.0886]
[1732316711236,0.08297543,98719.0,98711.0,0.050594]
[1732316711437,0.08297543,98719.0,98712.0,0.0886]
[1732316712240,0.08297543,98719.0,98713.0,0.0886]
[1732316712938,0.08297543,98719.0,98713.0,0.139193]
[1732316713145,0.08297543,98719.0,98714.0,0.050592]
[1732316714941,0.08297543,98719.0,98713.0,0.0886]
[1732316715241,0.08297543,98719.0,98716.0,0.050591]
[1732316715941,0.08297543,98719.0,98713.0,0.0886]
[1732316716140,0.08297543,98719.0,98714.0,0.050592]
[1732316716344,0.08297543,98719.0,98715.0,0.050592]
[1732316717139,0.08297543,98719.0,98710.0,0.0886]
[1732316717449,0.08297543,98719.0,98717.0,0.050591]
[1732316718146,0.08297543,98719.0,98718.0,0.050591]
[1732316718745,0.08297543,98719.0,98710.0,0.0886]
[1732316718942,0.07670779,98719.0,98714.0,0.050592]
[1732316719147,0.050591,98719.0,98710.0,0.0886]
[1732316719340,0.050591,98719.0,98711.0,0.050594]
[1732316719540,0.050591,98719.0,98710.0,0.0886]
[1732316719541,0.05059,98719.0,98714.0,0.050592]
[1732316719745,0.05059,98719.0,98716.0,0.050591]
[1732316720048,0.05059,98719.0,98710.0,0.0886]
[1732316720347,0.050589,98721.0,98717.0,0.050591]
[1732316720743,0.3608,98719.0,98716.0,0.050591]
[1732316721044,0.3608,98719.0,98718.0,0.050591]
[1732316721249,0.050589,98722.0,98718.0,0.050591]
[1732316721549,0.04627835,98722.0,98718.0,0.050591]
[1732316723247,0.04627835,98722.0,98716.0,0.050591]
[1732316723448,0.42696499,98727.0,98716.0,0.050591]
[1732316723653,0.42696499,98727.0,98710.0,0.0886]
[1732316723654,0.050591,98717.0,98710.0,0.0886]
[1732316724155,0.06452498,98720.0,98710.0,0.0886]
[1732316724452,0.06452498,98720.0,98715.0,0.050592]
[1732316724654,0.05059,98720.0,98715.0,0.050592]
[1732316725046,0.050589,98721.0,98711.0,0.050594]
[1732316725240,0.050589,98721.0,98710.0,0.0886]
[1732316725441,0.06452498,98720.0,98710.0,0.0886]
[1732316725641,0.06452498,98720.0,98716.0,0.050592]
[1732316725849,0.050589,98721.0,98716.0,0.050592]
[1732316726254,0.05059,98720.0,98716.0,0.050592]
[1732316727146,0.050589,98721.0,98716.0,0.050592]
[1732316727353,0.06452498,98726.0,98716.0,0.050592]
[1732316727553,0.05059,98720.0,98716.0,0.050592]
[1732316728048,0.06452498,98726.0,98716.0,0.050592]
[1732316728847,0.3608,98722.0,98716.0,0.050592]
[1732316729644,0.06452498,98726.0,98716.0,0.050592]
[1732316729846,0.050589,98722.0,98710.0,0.0886]
[1732316730053,0.06452498,98720.0,98710.0,0.0886]
[1732316730251,0.06452498,98720.0,98711.0,0.050594]
[1732316730555,0.06452498,98720.0,98710.0,0.0886]
[1732316730556,0.06452498,98720.0,98715.0,0.050592]
[1732316730751,0.00766468,98720.0,98715.0,0.050592]
[1732316731051,0.00766468,98720.0,98710.0,0.0886]
[1732316731257,0.00766468,98720.0,98716.0,0.050591]
[1732316732456,0.050588,98724.0,98718.0,0.05059]
[1732316732652,0.050588,98723.0,98715.0,0.050592]
[1732316732957,0.411387,98725.0,98718.0,0.05059]
[1732316733150,0.050588,98723.0,98719.0,0.05059]
[1732316733355,0.3608,98725.0,98711.0,0.08568]
[1732316733547,0.06452498,98721.0,98703.0,0.0302]
[1732316733750,0.06452498,98716.0,98697.0,0.00151973]
[1732316734052,0.3608,98717.0,98697.0,0.00151973]
[1732316734053,0.050599,98702.0,98698.0,0.050601]
[1732316734256,0.06452498,98707.0,98697.0,0.00151973]
[1732316734456,0.050598,98703.0,98698.0,0.050601]
[1732316734659,0.050598,98703.0,98699.0,0.0506]
[1732316735051,0.06452498,98707.0,98697.0,0.00151973]
[1732316735457,0.06452498,98707.0,98702.0,0.050598]
[1732316735658,0.050596,98707.0,98702.0,0.050598]
[1732316736450,0.3608,98709.0,98697.0,0.00151973]
[1732316736646,0.050598,98705.0,98697.0,0.00151973]
[1732316736856,0.050598,98705.0,98700.0,0.0506]
[1732316737156,0.050598,98705.0,98697.0,0.00151973]
[1732316737362,0.050598,98705.0,98701.0,0.050599]
[1732316737561,0.050598,98705.0,98697.0,0.00151973]
[1732316737756,0.050598,98705.0,98702.0,0.050599]
[1732316738254,0.050597,98706.0,98701.0,0.050599]
[1732316738459,0.3608,98709.0,98701.0,0.050599]
[1732316738752,0.050601,98698.0,98697.0,0.00151973]
[1732316738953,0.411401,98698.0,98697.0,0.00151973]
[1732316741669,0.3608,98698.0,98684.0,0.050608]
[1732316741966,0.050605,98691.0,98684.0,0.050608]
[1732316742158,0.3608,98698.0,98688.0,0.050606]
[1732316742358,0.3608,98698.0,98684.0,0.050608]
[1732316742569,0.050603,98693.0,98684.0,0.050608]
[1732316743067,0.050603,98693.0,98686.0,0.050607]
[1732316743268,0.050604,98692.0,98686.0,0.050607]
[1732316748665,0.050604,98692.0,98687.0,0.050606]
[1732316749564,0.41340748,98698.0,98697.0,0.050601]
[1732316749769,0.41176747,98698.0,98697.0,0.050601]
[1732316750975,0.3608,98709.0,98690.0,0.08572]
[1732316751186,0.3608,98709.0,98701.0,0.050599]
[1732316751474,0.411396,98709.0,98701.0,0.050599]
[1732316752270,0.46312605,98709.0,98691.0,0.050604]
[1732316752475,0.46312605,98709.0,98701.0,0.050599]
[1732316752665,0.46312605,98709.0,98690.0,0.15024498]
[1732316752978,0.46312605,98709.0,98691.0,0.050604]
[1732316753170,0.46312605,98709.0,98700.0,0.0506]
[1732316753373,0.46312605,98709.0,98690.0,0.15024498]
[1732316753573,0.46312605,98709.0,98701.0,0.050599]
[1732316754572,0.46312605,98709.0,98665.0,0.05213723]
[1732316754573,0.41253005,98709.0,98680.0,0.3608]
[1732316754771,0.050601,98698.0,98688.0,0.050606]
[1732316755077,0.050602,98697.0,98689.0,0.050605]
[1732316755681,0.050602,98697.0,98691.0,0.050604]
[1732316755880,0.050602,98697.0,98684.0,0.08572]
[1732316756472,0.050602,98697.0,98683.0,0.15042]
[1732316756975,0.050602,98697.0,98684.0,0.050608]
[1732316757177,0.050602,98697.0,98689.0,0.050605]
[1732316757484,0.050602,98697.0,98690.0,0.050605]
[1732316757675,0.42700498,98700.0,98690.0,0.050605]
[1732316757874,0.42532498,98700.0,98690.0,0.050605]
[1732316758173,0.050602,98697.0,98690.0,0.050605]
[1732316758380,0.050602,98697.0,98691.0,0.050604]
[1732316758772,0.050602,98696.0,98690.0,0.050605]
[1732316760278,0.050602,98696.0,98691.0,0.050604]
[1732316760867,0.3908,98707.0,98686.0,0.3608]
[1732316761069,0.3908,98707.0,98690.0,0.06452498]
[1732316761273,0.41425006,98709.0,98690.0,0.06452498]
[1732316761274,0.41425006,98709.0,98708.0,0.050596]
[1732316761474,0.41253005,98709.0,98708.0,0.050596]
[1732316761880,0.05173005,98709.0,98708.0,0.050596]
[1732316762085,0.3608,98714.0,98708.0,0.050596]
[1732316762284,0.3608,98714.0,98700.0,0.06452498]
[1732316762469,0.06452498,98710.0,98702.0,0.3608]
[1732316762782,0.411393,98714.0,98708.0,0.050595]
[1732316764277,0.411393,98714.0,98702.0,0.3608]
[1732316764477,0.3608,98714.0,98709.0,0.050595]
[1732316765280,0.3608,98714.0,98702.0,0.3608]
[1732316765477,0.3608,98714.0,98710.0,0.050595]
[1732316767176,0.3608,98714.0,98706.0,0.050597]
[1732316767387,0.3608,98714.0,98702.0,0.3608]
[1732316767588,0.06452498,98712.0,98706.0,0.050597]
[1732316767791,0.411393,98714.0,98706.0,0.050597]
[1732316768081,0.36244001,98714.0,98706.0,0.050597]
[1732316768389,0.050595,98710.0,98705.0,0.050597]
[1732316768782,0.3608,98714.0,98707.0,0.050596]
[1732316768783,0.411393,98714.0,98707.0,0.050596]
[1732316768980,0.050593,98713.0,98707.0,0.050596]
[1732316769578,0.3608,98714.0,98700.0,0.050599]
[1732316769786,0.3608,98706.0,98691.0,0.0636]
[1732316769986,0.06452498,98704.0,98693.0,0.050603]
[1732316770190,0.30393011,98698.0,98691.0,0.0636]
[1732316770483,0.050602,98696.0,98690.0,0.411405]
[1732316771186,0.050604,98691.0,98690.0,0.3608]
[1732316773176,0.050604,98691.0,98685.0,0.050607]
[1732316773487,0.050602,98696.0,98683.0,0.0824]
[1732316773691,0.050603,98694.0,98683.0,0.133008]
[1732316773883,0.050603,98694.0,98683.0,0.0824]
[1732316774088,0.050603,98694.0,98684.0,0.050608]
[1732316774481,0.05088491,98698.0,98684.0,0.050608]
[1732316774687,0.050603,98693.0,98684.0,0.050608]
[1732316774887,0.040493,98693.0,98686.0,0.050607]
[1732316775290,0.41363227,98700.0,98683.0,0.0824]
[1732316775595,0.41191226,98700.0,98683.0,0.0824]
[1732316776092,0.050607,98687.0,98680.0,0.0302]
[1732316776996,0.06452498,98693.0,98680.0,0.0302]
[1732316777296,0.11512898,98693.0,98680.0,0.08081]
[1732316780788,0.050604,98693.0,98680.0,0.08081]
[1732316781790,0.050604,98692.0,98680.0,0.08081]
[1732316781991,0.06452498,98690.0,98680.0,0.08081]
[1732316782996,0.06452498,98690.0,98680.0,0.0302]
[1732316783185,0.42532498,98690.0,98679.0,0.0658]
[1732316783390,0.050608,98685.0,98679.0,0.0658]
[1732316784095,0.42704499,98690.0,98679.0,0.0658]
[1732316784389,0.050606,98688.0,98679.0,0.11641]
[1732316785393,0.050606,98688.0,98680.0,0.05061]
[1732316786598,0.040496,98688.0,98680.0,0.05061]
[1732316786996,0.47728963,98690.0,98680.0,0.05061]
[1732316787191,0.050607,98687.0,98680.0,0.05061]
[1732316787596,0.11648963,98690.0,98679.0,0.0658]
[1732316787597,0.11640963,98690.0,98679.0,0.0658]
[1732316787802,0.050608,98685.0,98679.0,0.0658]
[1732316789794,0.05061,98681.0,98679.0,0.0658]
[1732316790199,0.050613,98675.0,98674.0,0.3608]
[1732316790503,0.050609,98683.0,98668.0,0.0304]
[1732316790691,0.050615,98670.0,98668.0,0.0304]
[1732316791001,0.050614,98673.0,98668.0,0.0304]
[1732316791187,0.0303,98683.0,98668.0,0.0304]
[1732316791499,0.050614,98672.0,98668.0,0.0304]
[1732316791695,0.0303,98683.0,98668.0,0.0304]
[1732316791897,0.050615,98672.0,98666.0,0.0331]
[1732316792094,0.0303,98683.0,98666.0,0.0331]
[1732316792501,0.050614,98673.0,98666.0,0.0331]
[1732316793501,0.050614,98672.0,98666.0,0.0331]
[1732316794500,0.050614,98672.0,98666.0,0.083717]
[1732316795297,0.0303,98683.0,98666.0,0.0331]
[1732316795493,0.050615,98670.0,98666.0,0.0331]
[1732316796595,0.040505,98670.0,98666.0,0.0331]
[1732316797389,0.0303,98683.0,98666.0,0.0331]
[1732316798094,0.050614,98672.0,98666.0,0.0331]
[1732316798401,0.050615,98671.0,98666.0,0.0331]
[1732316798601,0.050609,98682.0,98666.0,0.0331]
[1732316798798,0.050614,98672.0,98666.0,0.0331]
[1732316800101,0.050615,98671.0,98666.0,0.0331]
[1732316800408,0.06452498,98676.0,98666.0,0.0331]
[1732316800409,0.050616,98668.0,98666.0,0.0331]
[1732316802196,0.050614,98672.0,98666.0,0.0331]
[1732316802890,0.06452498,98676.0,98665.0,0.44368023]
[1732316803098,0.050615,98670.0,98665.0,0.44368023]
[1732316804205,0.06452498,98676.0,98665.0,0.44368023]
[1732316804206,0.050616,98669.0,98665.0,0.44368023]
[1732316804707,0.11601511,98676.0,98665.0,0.00152023]
[1732316804998,0.050617,98666.0,98665.0,0.00152023]
[1732316806697,0.05149013,98676.0,98665.0,0.36232023]
[1732316806893,0.050612,98677.0,98668.0,0.050616]
[1732316807098,0.050612,98676.0,98668.0,0.050616]
[1732316807305,0.050613,98675.0,98668.0,0.050616]
[1732316807601,0.050617,98666.0,98665.0,0.00152023]
[1732316810196,0.0304,98674.0,98657.0,0.033]
[1732316810398,0.06452498,98667.0,98657.0,0.033]
[1732316810599,0.00150109,98662.0,98657.0,0.033]
[1732316811604,0.00150109,98660.0,98657.0,0.033]
[1732316812502,0.06452498,98667.0,98658.0,0.050621]
[1732316812803,0.00150109,98659.0,98658.0,0.050621]
[1732316824201,0.06452498,98667.0,98658.0,0.050621]
[1732316825911,0.050619,98663.0,98658.0,0.050621]
[1732316826606,0.040509,98663.0,98658.0,0.050621]
[1732316828903,0.16459148,98667.0,98660.0,0.05062]
[1732316829311,0.11397448,98667.0,98660.0,0.05062]
[1732316829511,0.050617,98666.0,98660.0,0.05062]
[1732316830708,0.050618,98665.0,98661.0,0.26318098]
[1732316831205,0.050618,98665.0,98660.0,0.05062]
[1732316832202,0.050618,98665.0,98661.0,0.26318098]
[1732316832901,0.050618,98665.0,98662.0,0.26318098]
[1732316833100,0.050618,98665.0,98661.0,0.26318098]
[1732316833304,0.0494495,98667.0,98662.0,0.26318098]
[1732316833608,0.050616,98669.0,98664.0,0.050618]
[1732316833807,0.050616,98669.0,98665.0,0.26318098]